bitfinex/quotes_ETHUSD_20251217
["timestamp","ask_amount","ask_price","bid_price","bid_amount"]
[1765967695011,0.001,2928.9,2928.2,24.26383334]
[1765967695199,0.001,2928.9,2928.8,4.20434763]
[1765967696373,0.001,2928.9,2928.3,3.05147029]
[1765967696374,0.4613,2928.9,2928.3,3.05147029]
[1765967696571,0.001,2928.9,2928.8,4.20434763]
[1765967696870,0.001,2928.9,2928.8,7.61871528]
[1765967697704,0.4613,2928.9,2928.3,3.4148816]
[1765967697905,0.4603,2928.7,2928.6,7.61894837]
[1765967698117,0.4603,2928.7,2928.4,3.41481858]
[1765967698118,0.4603,2928.5,2928.4,4.20434763]
[1765967698415,0.4603,2928.2,2928.1,7.61944004]
[1765967698595,0.9203,2928.2,2928.1,7.61944004]
[1765967698798,0.4603,2928.0,2927.9,4.20434763]
[1765967698976,0.9203,2928.0,2927.9,4.20434763]
[1765967699166,0.46,2928.3,2927.9,7.61976482]
[1765967699793,0.9203,2928.2,2928.1,4.20434763]
[1765967700198,0.4603,2927.9,2927.8,0.002]
[1765967700401,1.1163,2927.9,2927.8,0.002]
[1765967700903,1.6583,2927.9,2927.8,0.002]
[1765967702967,0.03411281,2928.8,2927.8,0.002]
[1765967703168,0.001,2928.3,2927.8,5.47251145]
[1765967703474,0.001,2928.3,2928.1,5.47051145]
[1765967704104,0.4603,2927.9,2927.8,0.002]
[1765967704407,0.001,2928.3,2927.8,0.002]
[1765967704587,0.001,2928.3,2928.1,5.47051145]
[1765967705101,0.001,2928.3,2928.1,3.41513708]
[1765967705699,0.001,2928.3,2928.0,3.41526509]
[1765967705976,0.001,2928.3,2928.1,3.41517936]
[1765967707115,0.001,2928.3,2927.9,6.83079872]
[1765967707276,0.001,2928.3,2928.0,1.22997932]
[1765967708309,0.001,2928.3,2928.1,3.4151839]
[1765967708310,0.4758,2928.2,2928.1,3.4151839]
[1765967708677,0.001,2928.3,2928.1,3.4151839]
[1765967709893,0.001,2928.3,2927.8,5.46899448]
[1765967709894,0.6626,2927.9,2927.8,0.002]
[1765967710090,1.1549,2927.9,2927.8,0.002]
[1765967710592,1.0343,2928.2,2927.8,0.002]
[1765967710779,0.4758,2927.9,2927.8,0.002]
[1765967710978,1.1549,2927.9,2927.8,0.002]
[1765967711211,0.001,2928.3,2927.8,0.002]
[1765967711382,0.4923,2928.2,2927.8,0.002]
[1765967711583,0.6626,2927.9,2927.8,0.002]
[1765967711778,1.1549,2927.9,2927.8,0.002]
[1765967712401,1.1541,2927.9,2927.8,0.002]
[1765967715199,0.001,2928.3,2927.8,0.002]
[1765967715514,0.543,2928.3,2927.8,5.46899448]
[1765967715708,1.0353,2928.3,2927.9,0.54689945]
[1765967715910,0.543,2928.3,2927.9,0.54689945]
[1765967716409,0.543,2928.3,2928.0,3.41530054]
[1765967716585,1.0353,2928.3,2928.0,3.41530054]
[1765967716786,0.001,2928.3,2928.1,5.46699448]
[1765967717007,0.001,2928.3,2928.2,1.28405956]
[1765967717493,0.9691,2928.3,2928.2,1.28405956]
[1765967718081,0.9691,2928.3,2928.0,7.37360108]
[1765967718551,0.4768,2928.3,2928.0,7.37360108]
[1765967719619,0.4768,2928.3,2927.8,3.41743502]
[1765967719620,0.9681,2927.9,2927.8,3.41743502]
[1765967720118,0.001,2928.3,2927.8,16.68359718]
[1765967720291,0.001,2928.3,2927.9,0.03415417]
[1765967720495,0.001,2928.3,2928.2,3.41506727]
[1765967721090,0.001,2928.3,2928.2,4.10436727]
[1765967721704,0.001,2928.3,2928.2,4.13851794]
[1765967722124,0.001,2928.9,2928.2,10.93450181]
[1765967722312,0.001,2928.9,2928.7,5.46699448]
[1765967722514,0.001,2928.9,2928.8,3.9610671]
[1765967725104,0.001,2928.9,2928.8,3.99521077]
[1765967725518,0.001,2928.9,2928.8,3.9610671]
[1765967726400,0.001,2928.9,2928.8,4.13203517]
[1765967727697,0.001,2928.9,2928.8,4.0978915]
[1765967728627,0.001,2928.9,2928.8,4.13203517]
[1765967728828,0.001,2928.9,2928.8,4.0978915]
[1765967730222,0.001,2928.9,2928.8,4.13203517]
[1765967730530,0.001,2928.9,2928.8,4.0978915]
[1765967732303,0.001,2928.9,2928.8,9.84718804]
[1765967732627,0.001,2928.9,2928.8,9.81304437]
[1765967735734,0.001,2928.9,2928.8,9.84715718]
[1765967736237,0.0002,2928.9,2928.8,9.84715718]
[1765967736707,0.0002,2928.9,2928.8,10.35504437]
[1765967737515,0.0002,2928.9,2928.8,10.38915718]
[1765967739363,0.001,2929.5,2928.8,24.04662778]
[1765967739556,0.001,2929.5,2929.4,5.71515287]
[1765967739842,0.001,2929.5,2929.4,5.74928955]
[1765967740444,0.001,2929.5,2929.4,9.16295787]
[1765967740655,0.001,2929.5,2929.4,9.12882119]
[1765967740820,0.001,2930.1,2929.4,19.36982615]
[1765967741153,0.001,2930.1,2929.5,2.27836036]
[1765967741732,0.001,2930.1,2929.8,5.71515287]
[1765967742416,0.001,2930.1,2929.9,0.542]
[1765967742818,0.001,2930.1,2930.0,3.41296928]
[1765967744756,0.9781,2930.0,2929.9,0.542]
[1765967744957,0.4889,2929.7,2929.6,3.41340371]
[1765967745137,0.9781,2929.7,2929.6,3.41340371]
[1765967745532,0.4889,2929.6,2929.3,3.41375935]
[1765967745860,0.1802,2929.8,2928.8,6.26185232]
[1765967745861,0.4889,2929.3,2929.2,3.41384332]
[1765967746022,0.4889,2929.3,2928.6,5.71515287]
[1765967746023,0.9781,2929.0,2928.9,3.41421244]
[1765967746229,0.9781,2928.8,2928.7,3.41440633]
[1765967746476,0.1802,2928.9,2928.3,0.002]
[1765967746655,0.1802,2928.9,2928.7,0.9781]
[1765967746656,0.4889,2928.8,2928.7,0.9781]
[1765967746967,0.9781,2928.8,2928.7,0.9781]
[1765967747330,0.9781,2928.8,2928.5,3.41466227]
[1765967747655,0.1802,2928.9,2928.6,4.39270083]
[1765967747656,0.9781,2928.7,2928.6,4.39270083]
[1765967747833,0.1802,2928.9,2928.7,3.41447535]
[1765967747834,0.4889,2928.8,2928.7,3.41447535]
[1765967748039,0.6694,2929.1,2928.7,3.41447535]
[1765967748367,0.4892,2929.4,2928.7,6.86310443]
[1765967748527,0.1802,2930.5,2928.7,10.68270137]
[1765967748528,0.4892,2929.7,2928.7,10.68270137]
[1765967749457,0.4892,2929.7,2928.7,7.26821713]
[1765967749665,0.4889,2928.8,2928.7,3.41447535]
[1765967749863,0.1802,2928.9,2928.7,6.82895959]
[1765967750737,0.4889,2928.8,2928.7,3.41447535]
[1765967751138,0.4892,2929.6,2928.7,10.24344383]
[1765967751370,1.0312,2929.6,2928.8,0.03414367]
[1765967751535,0.4892,2929.6,2928.9,1.59927404]
[1765967752330,0.4892,2929.6,2929.0,0.03414134]
[1765967752864,0.4892,2929.6,2928.9,1.59927404]
[1765967753555,0.4892,2929.6,2929.0,6.82826902]
[1765967753951,0.4889,2929.1,2929.0,3.41413451]
[1765967754348,0.001,2929.7,2928.9,3.41421623]
[1765967754349,0.9781,2929.0,2928.9,3.41421623]
[1765967754960,0.9781,2929.0,2928.8,3.41433901]
[1765967755160,0.4889,2928.8,2928.7,3.41437134]
[1765967755846,0.9781,2928.7,2928.6,0.9801]
[1765967756040,0.9781,2928.7,2928.6,4.39470083]
[1765967756238,1.0312,2929.4,2928.6,17.75415472]
[1765967756438,0.4892,2929.3,2928.6,14.30540789]
[1765967756933,0.4892,2929.3,2928.6,8.59025502]
[1765967758976,0.4892,2929.3,2928.6,12.00485585]
[1765967759139,0.542,2929.6,2928.6,12.00485585]
[1765967759471,0.4892,2929.5,2928.7,1.54195257]
[1765967760441,0.4884,2929.5,2928.8,6.8287353]
[1765967760987,0.4889,2928.8,2928.7,3.41445774]
[1765967762052,0.4889,2928.7,2928.6,0.9801]
[1765967762257,0.9781,2928.7,2928.6,0.9801]
[1765967762485,0.9781,2928.7,2928.6,4.39470083]
[1765967763988,0.9781,2928.7,2928.6,3.41660083]
[1765967764173,0.4889,2928.7,2928.6,3.41660083]
[1765967764681,0.4889,2928.7,2928.6,0.002]
[1765967764886,0.9575,2928.7,2928.6,0.002]
[1765967765053,1.4995,2928.7,2928.6,0.002]
[1765967765578,0.9567,2928.4,2928.3,0.002]
[1765967776387,0.1802,2928.9,2928.3,0.002]
[1765967776574,0.4686,2928.7,2928.3,0.002]
[1765967776918,1.0106,2928.8,2928.3,0.002]
[1765967777078,0.4686,2928.7,2928.3,0.002]
[1765967777477,0.001,2928.5,2928.3,0.002]
[1765967778331,0.4881,2928.4,2928.3,0.002]
[1765967778505,0.9567,2928.4,2928.3,0.73941345]
[1765967779048,0.001,2928.5,2928.3,0.73941345]
[1765967780316,0.001,2928.5,2928.4,3.41483403]
[1765967783656,0.001,2929.7,2928.4,17.65031849]
[1765967783840,0.001,2929.7,2928.9,5.72214081]
[1765967784043,0.001,2929.7,2929.0,0.57221408]
[1765967784044,0.4696,2929.6,2929.0,0.57221408]
[1765967784377,0.4873,2929.1,2928.4,13.65933612]
[1765967784563,0.4686,2929.3,2928.6,0.4696]
[1765967784761,0.543,2929.6,2928.7,5.72214081]
[1765967784762,1.0116,2929.6,2928.7,5.72214081]
[1765967784947,1.0116,2929.6,2928.9,6.82850216]
[1765967785150,0.001,2929.6,2929.0,0.03414134]
[1765967785351,0.001,2929.6,2929.1,1.36911457]
[1765967785567,0.001,2929.6,2929.2,0.03413901]
[1765967785972,0.001,2929.6,2929.1,7.09125538]
[1765967786646,0.001,2929.6,2929.2,0.1825]
[1765967787288,0.001,2929.6,2929.3,6.82756972]
[1765967787478,0.001,2929.6,2929.4,1.04239497]
[1765967787783,0.001,2929.6,2929.5,0.03413551]
[1765967788146,0.001,2929.6,2929.4,1.04239497]
[1765967788345,0.001,2929.6,2929.5,0.13680522]
[1765967789276,0.001,2929.6,2929.5,3.55035702]
[1765967789456,0.001,2929.6,2929.5,4.3509982]
[1765967792253,0.001,2929.6,2929.5,9.81209734]
[1765967793278,0.001,2929.6,2929.5,4.3509982]
[1765967797698,0.4958,2929.6,2929.3,6.82756972]
[1765967797900,0.001,2929.6,2929.3,13.03653583]
[1765967798874,0.4958,2929.6,2929.3,7.57543669]
[1765967799194,0.4885,2929.4,2929.3,3.41378486]
[1765967799400,0.4958,2929.6,2929.3,6.82756972]
[1765967799576,0.001,2929.6,2929.3,6.82756972]
[1765967801094,0.4958,2929.6,2929.3,6.82756972]
[1765967804260,0.001,2929.6,2929.3,6.82756972]
[1765967804459,0.001,2929.6,2929.3,7.55980669]
[1765967804995,0.001,2929.6,2929.3,13.02090583]
[1765967806492,0.001,2929.6,2929.3,7.55980669]
[1765967806687,0.4885,2929.4,2929.3,3.41378486]
[1765967807297,0.001,2929.6,2929.3,6.82756972]
[1765967808282,0.0002,2929.6,2929.3,6.82756972]
[1765967808484,0.0002,2929.6,2929.2,3.41387894]
[1765967808684,0.0002,2929.6,2929.2,3.59637894]
[1765967808881,0.0002,2929.6,2929.3,6.50354062]
[1765967809385,0.0002,2929.6,2929.4,0.1825]
[1765967810704,0.0002,2929.6,2929.5,3.4135518]
[1765967811302,0.4887,2929.6,2929.5,3.4135518]
[1765967811877,0.4885,2929.5,2929.4,3.41363389]
[1765967812077,0.9833,2929.5,2929.4,3.41363389]
[1765967812614,0.9833,2929.5,2929.2,6.82777121]
[1765967812927,0.9833,2929.5,2929.2,7.90163792]
[1765967813579,0.0002,2929.6,2929.2,7.90163792]
[1765967813974,0.0002,2929.6,2929.3,5.46109914]
[1765967814205,0.0002,2929.6,2929.3,5.49523698]
[1765967814805,0.0002,2929.6,2929.4,6.82733664]
[1765967814984,0.0002,2929.6,2929.5,1.22884358]
[1765967816701,0.0002,2929.6,2929.5,4.64239538]
[1765967819419,0.0002,2929.6,2929.5,8.84347321]
[1765967819718,0.9835,2929.6,2929.5,4.64239538]
[1765967819888,0.0002,2929.6,2929.4,3.41360872]
[1765967820282,0.4885,2929.5,2929.3,3.41372682]
[1765967820484,0.9833,2929.4,2929.3,3.41372682]
[1765967822119,0.9833,2929.2,2929.1,0.4885]
[1765967822690,0.542,2929.4,2929.0,0.002]
[1765967822691,0.9833,2929.1,2929.0,0.002]
[1765967823028,0.9833,2928.5,2928.4,0.002]
[1765967823211,0.4885,2928.5,2928.4,3.41676869]
[1765967823694,0.9833,2928.5,2928.4,3.41676869]
[1765967824019,0.9833,2928.5,2928.4,0.002]
[1765967832319,0.9825,2928.5,2928.4,0.002]
[1765967833024,0.4877,2928.5,2928.4,0.002]
[1765967833211,0.542,2928.5,2928.4,0.002]
[1765967833414,0.542,2928.5,2928.4,0.54902865]
[1765967834305,0.1949,2928.9,2928.4,0.54902865]
[1765967834505,0.542,2928.8,2928.4,0.54902865]
[1765967834898,0.492,2928.6,2928.5,3.41471743]
[1765967835098,0.9824,2928.6,2928.5,3.41471743]
[1765967835305,0.492,2928.6,2928.5,4.15278359]
[1765967835902,0.9824,2928.6,2928.5,4.15278359]
[1765967836226,0.492,2928.5,2928.4,3.41682386]
[1765967837614,0.492,2928.5,2928.4,0.002]
[1765967839112,0.9824,2928.5,2928.4,0.002]
[1765967844038,0.9824,2928.1,2928.0,0.002]
[1765967844222,1.5244,2928.1,2928.0,0.002]
[1765967846906,0.9824,2928.0,2927.9,0.002]
[1765967849138,1.1773,2927.9,2927.8,0.002]
[1765967851226,1.7193,2927.9,2927.8,0.002]
[1765967852230,1.1773,2927.9,2927.8,0.002]
[1765967852434,1.7193,2927.9,2927.8,0.002]
[1765967852951,1.2289,2927.9,2927.8,0.002]
[1765967853145,1.7193,2927.9,2927.8,0.002]
[1765967853524,1.1773,2927.9,2927.8,0.002]
[1765967853787,1.7193,2927.9,2927.8,0.002]
[1765967854550,0.4535,2928.8,2927.8,0.002]
[1765967854755,0.1949,2928.9,2927.8,0.002]
[1765967854756,0.4535,2928.6,2927.8,0.002]
[1765967856057,0.4535,2928.4,2927.8,0.002]
[1765967856354,0.4527,2928.4,2927.8,0.002]
[1765967858028,0.001,2928.5,2927.8,0.002]
[1765967858256,0.542,2928.4,2927.8,0.002]
[1765967860260,0.4814,2928.0,2927.9,0.57244951]
[1765967860563,0.4814,2928.0,2927.8,0.002]
[1765967861058,0.9679,2927.9,2927.8,0.002]
[1765967861438,0.4814,2927.9,2927.8,0.002]
[1765967861750,0.4865,2928.1,2927.8,0.002]
[1765967861947,0.4865,2928.3,2927.8,1.02693015]
[1765967862147,0.001,2928.5,2927.8,1.02693015]
[1765967862354,0.542,2928.2,2927.8,1.02693015]
[1765967863764,0.001,2928.5,2927.9,10.24625157]
[1765967863962,0.541,2928.4,2927.9,10.24625157]
[1765967864137,0.541,2928.4,2928.0,1.12731817]
[1765967864743,0.4865,2928.3,2928.0,1.12731817]
[1765967864944,0.4814,2928.1,2928.0,1.12731817]
[1765967865157,0.9679,2928.0,2927.9,3.41541719]
[1765967865361,0.4865,2928.3,2927.9,6.83083438]
[1765967867063,0.4865,2928.3,2927.8,0.002]
[1765967871152,0.9679,2927.9,2927.8,0.002]
[1765967872468,0.4814,2927.9,2927.8,0.002]
[1765967872670,0.9679,2927.9,2927.8,0.002]
[1765967872961,0.4814,2927.9,2927.8,0.002]
[1765967873135,0.4865,2928.1,2927.8,0.002]
[1765967873870,0.4814,2927.9,2927.8,0.002]
[1765967876458,1.1598,2927.9,2927.8,0.002]
[1765967879869,1.7008,2927.9,2927.8,0.002]
[1765967880276,1.7,2927.9,2927.8,0.002]
[1765967882079,1.2135,2927.9,2927.8,0.002]
[1765967882282,1.7,2927.9,2927.8,0.002]
[1765967892100,0.4806,2927.9,2927.8,0.002]
[1765967892399,1.5074,2927.9,2927.8,0.002]
[1765967895271,1.5084,2927.9,2927.8,0.002]
[1765967899181,0.001,2927.9,2927.8,0.002]
[1765967899377,0.542,2927.9,2927.8,4.89428371]
[1765967899577,0.542,2927.9,2927.8,5.0311985]
[1765967901204,0.542,2927.9,2927.8,4.24119438]
[1765967901511,1.6648,2927.9,2927.8,3.41753384]
[1765967902477,1.6648,2927.9,2927.8,0.002]
[1765967903011,1.6648,2927.9,2927.8,3.41753384]
[1765967903706,0.542,2927.9,2927.8,3.41753384]
[1765967904409,0.5412,2927.9,2927.8,3.41753384]
[1765967904606,0.5412,2927.9,2927.8,4.57560528]
[1765967907784,0.5412,2927.9,2927.8,5.11680528]
[1765967908091,1.664,2927.9,2927.8,1.70127144]
[1765967908296,1.664,2927.9,2927.8,0.5432]
[1765967909028,1.664,2927.9,2927.8,3.95873384]
[1765967909822,0.9958,2927.9,2927.8,3.95873384]
[1765967910125,0.5412,2927.9,2927.8,3.95873384]
[1765967911610,1.4816,2927.9,2927.8,3.95873384]
[1765967912921,0.9958,2927.9,2927.8,3.95873384]
[1765967913123,0.5412,2927.9,2927.8,4.69617122]
[1765967913625,0.5412,2927.9,2927.8,8.90257277]
[1765967915327,1.6943,2927.9,2927.8,0.5432]
[1765967915528,1.6943,2927.9,2927.8,0.002]
[1765967915824,0.9629,2927.7,2927.6,1.02682933]
[1765967916071,0.9629,2927.6,2927.5,0.002]
[1765967920532,1.49163034,2927.6,2927.5,0.002]
[1765967928146,1.49083034,2927.6,2927.5,0.002]
[1765967941366,1.49183034,2927.6,2927.5,0.002]
[1765967946107,0.001,2927.6,2927.5,0.03615883]
[1765967946403,0.001,2927.6,2927.5,0.98399973]
[1765967946963,0.001,2927.6,2927.5,1.01815856]
[1765967947379,0.001,2927.6,2927.5,4.39988358]
[1765967948383,0.4708,2927.6,2927.5,4.39988358]
[1765967949371,0.461748,2927.6,2927.5,4.39988358]
[1765967949768,0.462748,2927.6,2927.5,4.39988358]
[1765967950388,0.001,2927.6,2927.5,4.39988358]
[1765967950769,0.542,2927.6,2927.5,4.39988358]
[1765967951669,0.001,2927.6,2927.5,4.39988358]
[1765967952177,0.0002,2927.6,2927.5,4.39988358]
[1765967956080,0.47,2927.6,2927.5,4.39988358]
[1765967956286,0.9677,2927.6,2927.5,0.13890354]
[1765967956910,0.9677,2927.6,2927.5,3.55478739]
[1765967957585,0.9677,2927.6,2927.5,7.76118894]
[1765967957786,0.47,2927.6,2927.5,7.76118894]
[1765967958803,0.47,2927.6,2927.5,7.6242854]
[1765967959501,0.9677,2927.6,2927.5,7.6242854]
[1765967960220,0.9677,2927.6,2927.5,0.002]
[1765967960371,0.9675,2927.3,2927.2,0.002]
[1765967960680,1.5085,2927.3,2927.2,0.002]
[1765967962380,2.07999016,2927.3,2927.2,0.002]
[1765967963600,1.5085,2927.3,2927.2,0.002]
[1765967970408,0.9675,2927.2,2927.1,0.002]
[1765967970612,1.1557,2926.9,2926.8,0.002]
[1765967970778,1.6967,2926.9,2926.8,0.002]
[1765967970979,2.28701015,2926.9,2926.8,0.002]
[1765967971611,1.6967,2926.9,2926.8,0.002]
[1765967973297,5.90310155,2926.9,2926.8,0.002]
[1765967975514,1.6967,2926.9,2926.8,0.002]
[1765967976327,1.6959,2926.9,2926.8,0.002]
[1765967977220,1.87449377,2926.9,2926.8,0.002]
[1765967977718,2.06194315,2926.9,2926.8,0.002]
[1765967990519,2.06294315,2926.9,2926.8,0.002]
[1765967990714,0.83679377,2926.9,2926.8,0.002]
[1765967990904,1.6748,2926.9,2926.8,0.002]
[1765967993832,0.001,2926.9,2926.8,4.2134408]
[1765967994398,0.001,2926.9,2926.8,0.002]
[1765967996003,0.001,2926.9,2926.8,0.543]
[1765967996636,0.001,2926.9,2926.8,4.69778769]
[1765967997236,0.001,2926.9,2926.8,8.90922849]
[1765967997537,0.001,2926.9,2926.8,13.12066929]
[1765967997838,0.542,2928.1,2927.3,8.4228816]
[1765967998020,0.542,2928.1,2927.5,4.2114408]
[1765967998228,0.542,2928.1,2927.5,4.63258488]
[1765967998433,0.542,2928.1,2927.5,4.76948749]
[1765967999237,0.542,2928.1,2927.5,8.18537134]
[1765967999544,0.001,2928.1,2927.5,8.18537134]
[1765968000256,0.0004,2927.8,2927.5,11.60125519]
[1765968000456,0.001,2928.1,2927.7,4.2114408]
[1765968000764,0.001,2928.1,2927.8,4.2114408]
[1765968001130,0.001,2928.1,2927.8,7.62697464]
[1765968001330,0.001,2928.1,2927.8,9.13303175]
[1765968004360,0.001,2928.1,2927.8,9.2698922]
[1765968004565,0.001,2928.1,2927.8,10.78845369]
[1765968005181,0.001,2928.1,2927.8,5.07095578]
[1765968008893,0.001,2928.1,2927.8,5.10511111]
[1765968009266,0.001,2928.1,2927.8,5.07095578]
[1765968010198,0.001,2928.1,2927.8,5.10511111]
[1765968011801,0.001,2928.1,2927.8,5.61195578]
[1765968012994,0.001,2928.1,2927.8,5.61395578]
[1765968013397,0.001,2928.1,2927.8,5.07295578]
[1765968013580,0.001,2928.1,2927.8,5.61395578]
[1765968014688,0.001,2928.1,2927.8,5.64811111]
[1765968015078,0.001,2928.5,2927.8,19.31024647]
[1765968015399,0.001,2928.5,2928.4,9.13233194]
[1765968015898,0.001,2928.5,2928.4,9.67333194]
[1765968016798,0.001,2928.5,2928.4,9.2691657]
[1765968017000,0.001,2928.5,2928.4,9.8101657]
[1765968020321,0.001,2928.5,2928.4,3.55166779]
[1765968020642,0.001,2928.5,2928.4,4.2483289]
[1765968022331,0.001,2928.5,2928.4,4.28247724]
[1765968022656,0.001,2928.5,2928.4,4.2483289]
[1765968023361,0.001,2928.5,2928.4,12.65461486]
[1765968024262,0.0002,2928.5,2928.4,8.45147188]
[1765968024760,0.0002,2928.5,2928.4,12.65461486]
[1765968025061,0.0002,2928.5,2928.4,4.2483289]
[1765968025229,0.0002,2928.5,2928.4,12.6887632]
[1765968025562,0.0002,2928.5,2928.4,12.65461486]
[1765968025932,0.0002,2928.5,2928.4,8.45147188]
[1765968027968,0.0002,2928.5,2928.4,12.65461486]
[1765968029466,0.0002,2928.5,2928.4,8.45147188]
[1765968033572,0.0002,2928.5,2928.4,8.45347188]
[1765968033950,0.451,2928.5,2928.4,3.55366779]
[1765968034141,0.924,2928.5,2928.4,3.55366779]
[1765968034466,0.451,2928.5,2928.4,3.55366779]
[1765968034671,0.0002,2928.5,2928.4,3.55366779]
[1765968035453,0.0002,2928.5,2928.4,7.75801991]
[1765968035854,0.0002,2928.5,2928.4,13.07966836]
[1765968036042,0.0002,2928.5,2928.4,8.87531624]
[1765968036470,0.0002,2928.5,2928.4,7.75801991]
[1765968040958,0.4775,2928.5,2928.4,7.75801991]
[1765968041475,0.954,2928.5,2928.4,3.55366779]
[1765968046882,0.954,2928.5,2928.4,0.13883376]
[1765968047064,0.954,2928.5,2928.4,3.41683403]
[1765968047681,0.954,2928.5,2928.4,0.002]
[1765968048182,0.9532,2928.5,2928.4,0.002]
[1765968053874,0.9542,2928.5,2928.4,0.002]
[1765968061893,0.001,2928.5,2928.4,4.20759455]
[1765968062393,0.4783,2928.5,2928.4,4.20759455]
[1765968062692,0.4783,2928.5,2928.4,7.62242858]
[1765968062994,0.9548,2928.5,2928.4,4.20759455]
[1765968063194,0.9548,2928.5,2928.4,7.62242858]
[1765968063566,0.9548,2928.5,2928.4,4.20759455]
[1765968064805,0.9548,2928.5,2928.4,0.002]
[1765968069193,0.9548,2928.5,2928.4,4.20759455]
[1765968071996,0.9548,2928.5,2928.4,7.62242858]
[1765968072190,0.954,2928.5,2928.4,4.20759455]
[1765968072391,0.954,2928.5,2928.4,0.002]
[1765968074411,0.9586,2928.5,2928.4,0.002]
[1765968074984,0.491,2928.5,2928.4,4.20759455]
[1765968075513,0.9586,2928.5,2928.4,4.20759455]
[1765968076414,0.9586,2928.5,2928.4,0.002]
[1765968077478,0.9586,2928.5,2928.4,7.62242858]
[1765968078010,0.9586,2928.5,2928.4,4.20759455]
[1765968079011,0.9586,2928.5,2928.4,5.16619455]
[1765968079512,0.9586,2928.5,2928.4,0.9606]
[1765968083930,0.491,2928.5,2928.4,0.9606]
[1765968084106,0.9586,2928.5,2928.4,0.9606]
[1765968085123,0.9586,2928.5,2928.4,0.002]
[1765968088295,0.9586,2928.5,2928.4,0.9606]
[1765968089499,0.9586,2928.5,2928.4,0.002]
[1765968094499,0.0002,2928.5,2928.4,4.64515631]
[1765968094705,0.0002,2928.5,2928.4,4.24174289]
[1765968094904,0.0002,2928.5,2928.4,4.37858836]
[1765968095220,0.0002,2928.5,2928.4,0.13884547]
[1765968095421,0.0002,2928.5,2928.4,4.34444002]
[1765968096215,0.0004,2928.6,2928.4,12.34564199]
[1765968096505,0.0004,2928.6,2928.4,12.20879652]
[1765968096832,0.0004,2928.6,2928.5,0.13684547]
[1765968097418,0.0004,2928.6,2928.5,7.75521638]
[1765968098633,0.0004,2928.6,2928.5,11.95886986]
[1765968098801,0.0004,2928.6,2928.5,14.49608848]
[1765968100740,0.0004,2928.6,2928.5,14.49808848]
[1765968106910,0.0004,2928.6,2928.5,9.753435]
[1765968107405,0.9524,2928.6,2928.5,0.13884547]
[1765968108009,0.9524,2928.6,2928.5,0.002]
[1765968108237,0.4882,2928.4,2928.3,0.13884547]
[1765968108445,0.952,2928.4,2928.3,4.547e-05]
[1765968108640,1.1423,2927.9,2927.8,0.002]
[1765968108823,1.1423,2927.9,2927.8,1.02881879]
[1765968112250,1.1423,2927.9,2927.8,4.44435263]
[1765968112549,1.1423,2927.9,2927.8,1.02881879]
[1765968114542,1.1423,2927.9,2927.8,0.002]
[1765968116952,1.1423,2927.9,2927.8,4.44435263]
[1765968117872,0.541,2928.1,2927.8,7.98138647]
[1765968118323,1.0048,2928.1,2927.8,7.98138647]
[1765968118770,1.0048,2928.1,2927.8,4.56585263]
[1765968119460,0.4638,2928.0,2927.8,4.56585263]
[1765968119620,0.541,2928.1,2927.8,7.98138647]
[1765968119965,0.4882,2927.9,2927.8,3.41753384]
[1765968120262,0.9512,2927.9,2927.8,3.41753384]
[1765968120688,0.541,2928.1,2927.8,6.83306768]
[1765968120840,0.4638,2928.0,2927.8,3.95853384]
[1765968121042,0.952,2927.9,2927.8,3.95853384]
[1765968121480,0.4882,2927.9,2927.8,3.95853384]
[1765968121779,0.4882,2927.9,2927.8,0.954]
[1765968121981,1.0048,2928.1,2927.8,0.954]
[1765968122542,0.001,2928.3,2928.0,0.1223]
[1765968122763,1.0058,2928.3,2928.0,0.1223]
[1765968122978,0.4638,2928.2,2927.8,0.002]
[1765968123278,0.542,2928.3,2928.1,1.1281]
[1765968123785,0.542,2928.3,2928.1,3.53736936]
[1765968123950,1.494,2928.3,2928.2,0.542]
[1765968132754,0.542,2928.3,2928.2,4.07936727]
[1765968133874,1.5261,2928.3,2928.2,3.95706727]
[1765968135183,1.5261,2928.3,2928.2,0.542]
[1765968135381,1.5261,2928.3,2928.2,3.95706727]
[1765968136175,1.0334,2928.3,2928.2,3.95706727]
[1765968137481,1.5261,2928.3,2928.2,3.95706727]
[1765968138380,1.0334,2928.3,2928.2,3.95706727]
[1765968143387,0.542,2928.3,2928.2,4.07936727]
[1765968144264,0.5412,2928.3,2928.2,5.2616975]
[1765968145453,1.0326,2928.3,2928.2,5.1393975]
[1765968145785,1.5253,2928.3,2928.2,3.95706727]
[1765968146854,1.0326,2928.3,2928.2,3.95706727]
[1765968147154,0.5412,2928.3,2928.2,4.07936727]
[1765968149401,1.0326,2928.3,2928.2,3.95706727]
[1765968153995,0.5412,2928.3,2928.2,4.07936727]
[1765968159400,0.5412,2928.3,2928.2,8.28423978]
[1765968159998,0.5412,2928.3,2928.2,10.00919887]
[1765968160198,0.0002,2928.3,2928.2,10.00919887]
[1765968160404,0.0002,2928.3,2928.2,9.76459887]
[1765968162001,0.0002,2928.3,2928.2,9.88689887]
[1765968162300,0.0002,2928.3,2928.2,9.76459887]
[1765968166618,0.0002,2928.3,2928.2,9.88689887]
[1765968166817,0.0002,2928.3,2928.2,5.68202636]
[1765968166997,0.0002,2928.3,2928.2,8.28423978]
[1765968167695,0.0002,2928.3,2928.2,8.16193978]
[1765968168300,0.4924,2928.5,2928.4,4.20487251]
[1765968168700,1.0337,2928.6,2928.4,4.20487251]
[1765968169017,0.5408,2928.6,2928.5,0.1223]
[1765968169717,0.5408,2928.6,2928.5,0.6631]